[Event "NJSK 2022 Meisjes A&B"]
[Site "Almelo, Netherlands"]
[Date "2022.05.01"]
[Round "1.1"]
[White "Martinez, Sara"]
[Black "De Zoeten, Cato"]
[Result "0-1"]
[TimeControl "90min/40moves + 30min + 30sec/move"]
[WhiteElo "1651"]
[BlackElo "1915"]

1. e4 {[%clk 01:30:57]} {[%emt 00:00:02]} c5 {[%clk 01:30:55]} {[%emt
00:00:05]} 2. Nf3 {[%clk 01:31:23]} {[%emt 00:00:05]} d6 {[%clk 01:31:20]}
{[%emt 00:00:04]} 3. d4 {[%clk 01:31:49]} {[%emt 00:00:05]} cxd4 {[%clk
01:31:43]} {[%emt 00:00:06]} 4. Nxd4 {[%clk 01:32:13]} {[%emt 00:00:06]} Nf6
{[%clk 01:32:06]} {[%emt 00:00:07]} 5. Nc3 {[%clk 01:32:35]} {[%emt 00:00:09]}
a6 {[%clk 01:32:20]} {[%emt 00:00:16]} 6. Bg5 {[%clk 01:32:42]} {[%emt
00:00:23]} Nbd7 {[%clk 01:32:12]} {[%emt 00:00:37]} 7. f4 {[%clk 01:25:39]}
{[%emt 00:07:34]} Qc7 {[%clk 01:32:24]} {[%emt 00:00:17]} 8. Qf3 {[%clk
01:22:26]} {[%emt 00:03:44]} b5 {[%clk 01:32:04]} {[%emt 00:00:50]} 9. e5
{[%clk 01:14:09]} {[%emt 00:08:47]} Bb7 {[%clk 01:32:26]} {[%emt 00:00:07]} 10.
exd6 {[%clk 01:14:02]} {[%emt 00:00:37]} Qb6 {[%clk 01:32:37]} {[%emt
00:00:20]} 11. Qe3 {[%clk 01:08:57]} {[%emt 00:05:34]} e6 {[%clk 01:32:41]}
{[%emt 00:00:26]} 12. O-O-O {[%clk 01:04:23]} {[%emt 00:05:05]} Bxd6 {[%clk
01:32:30]} {[%emt 00:00:41]} 13. Kb1 {[%clk 00:57:28]} {[%emt 00:07:25]} O-O
{[%clk 01:24:53]} {[%emt 00:08:06]} 14. Qh3 {[%clk 00:48:33]} {[%emt 00:09:25]}
Rfe8 {[%clk 01:11:55]} {[%emt 00:13:28]} 15. Nb3 {[%clk 00:40:13]} {[%emt
00:08:51]} b4 {[%clk 00:49:01]} {[%emt 00:23:24]} 16. Na4 {[%clk 00:30:20]}
{[%emt 00:10:23]} Qc7 {[%clk 00:46:59]} {[%emt 00:20:17]} 17. Bd3 {[%clk
00:23:28]} {[%emt 00:07:22]} Rac8 {[%clk 00:30:04]} {[%emt 00:17:24]} 18. Rhf1
{[%clk 00:15:34]} {[%emt 00:08:25]} Bd5 {[%clk 00:19:38]} {[%emt 00:10:56]} 19.
Rf2 {[%clk 00:12:25]} {[%emt 00:03:39]} Qc6 {[%clk 00:18:23]} {[%emt 00:01:45]}
20. Bxf6 {[%clk 00:10:28]} {[%emt 00:02:28]} Nxf6 {[%clk 00:18:35]} {[%emt
00:00:17]} 21. g4 {[%clk 00:09:21]} {[%emt 00:01:37]} g6 {[%clk 00:11:41]}
{[%emt 00:07:24]} 22. g5 {[%clk 00:06:54]} {[%emt 00:02:58]} Nh5 {[%clk
00:11:14]} {[%emt 00:00:56]} 23. f5 {[%clk 00:06:46]} {[%emt 00:00:38]} Nf4
{[%clk 00:10:17]} {[%emt 00:01:27]} 24. Rxf4 {[%clk 00:04:42]} {[%emt
00:02:35]} Bxf4 {[%clk 00:10:14]} {[%emt 00:00:33]} 25. Nac5 {[%clk 00:05:05]}
{[%emt 00:00:07]} exf5 {[%emt 00:01:41]} 26. Nxa6 {[%clk 00:05:03]} Bg2 {[%clk
00:07:38]} {[%emt 00:02:26]} 27. Qh4 {[%clk 00:05:10]} {[%emt 00:00:23]} Qf3
{[%clk 00:07:31]} {[%emt 00:00:36]} 28. Re1 {[%clk 00:04:58]} {[%emt 00:00:43]}
Re3 {[%clk 00:05:18]} {[%emt 00:02:42]} 29. Nd2 {[%clk 00:03:20]} {[%emt
00:02:09]} Rxe1+ {[%clk 00:04:04]} {[%emt 00:01:44]} 30. Qxe1 {[%clk 00:03:44]}
{[%emt 00:00:07]} Qe3 {[%clk 00:03:21]} {[%emt 00:01:12]} 31. Qxe3 {[%clk
00:03:31]} {[%emt 00:00:43]} Bxe3 {[%clk 00:03:46]} {[%emt 00:00:05]} 32. Nc4
{[%clk 00:03:51]} {[%emt 00:00:10]} Bxg5 {[%clk 00:02:48]} {[%emt 00:01:28]} 33.
Nxb4 {[%clk 00:03:52]} {[%emt 00:00:30]} f4 {[%clk 00:02:57]} {[%emt 00:00:20]}
34. Nd2 {[%clk 00:03:18]} {[%emt 00:01:04]} f3 {[%clk 00:02:13]} {[%emt
00:01:14]} 35. Ne4 {[%clk 00:02:55]} {[%emt 00:00:54]} Be7 {[%clk 00:01:15]}
{[%emt 00:01:27]} 36. Nd5 {[%clk 00:02:57]} {[%emt 00:00:28]} Bf8 {[%clk
00:01:08]} {[%emt 00:00:38]} 37. c4 {[%clk 00:02:43]} {[%emt 00:00:43]} f5
{[%clk 00:01:16]} {[%emt 00:00:22]} 38. Nf2 {[%clk 00:02:53]} {[%emt 00:00:20]}
Kg7 {[%clk 00:01:07]} {[%emt 00:00:39]} 39. Kc2 {[%clk 00:02:09]} {[%emt
00:01:14]} Bc5 {[%clk 00:01:25]} {[%emt 00:00:11]} 40. Nd1 {[%clk 00:02:28]}
{[%emt 00:00:12]} Re8 {[%clk 00:00:58]} {[%emt 00:00:57]} 41. Kd2 {[%clk
00:01:23]} {[%emt 00:01:35]} f2 {[%clk 00:23:49]} {[%emt 00:07:38]} 42. N5e3
{[%clk 00:26:48]} {[%emt 00:05:06]} Bf3 {[%clk 00:22:23]} {[%emt 00:01:55]} 43.
Nf1 {[%clk 00:20:42]} {[%emt 00:06:36]} Rd8 {[%clk 00:16:18]} {[%emt 00:06:36]}
44. Kc2 {[%clk 00:19:33]} {[%emt 00:01:39]} Bxd1+ {[%clk 00:16:34]} {[%emt
00:00:13]} 0-1

[Event "NJSK 2022 Meisjes A&B"]
[Site "Almelo, Netherlands"]
[Date "2022.05.01"]
[Round "1.2"]
[White "Verheij, Dana"]
[Black "Tangarife Ramirez, Katja"]
[Result "1-0"]
[TimeControl "90min/40moves + 30min + 30sec/move"]
[WhiteElo "1828"]
[BlackElo "1623"]

1. e4 {[%clk 01:30:55]} {[%emt 00:00:04]} e5 {[%clk 01:30:50]} {[%emt
00:00:11]} 2. Nf3 {[%clk 01:31:13]} {[%emt 00:00:12]} Nf6 {[%clk 01:31:07]}
{[%emt 00:00:13]} 3. Nxe5 {[%clk 01:31:13]} {[%emt 00:00:30]} d6 {[%clk
01:31:26]} {[%emt 00:00:11]} 4. Nf3 {[%clk 01:31:08]} {[%emt 00:00:35]} Nxe4
{[%clk 01:31:38]} {[%emt 00:00:18]} 5. d4 {[%clk 01:29:57]} {[%emt 00:01:41]}
d5 {[%clk 01:30:16]} {[%emt 00:01:52]} 6. c4 {[%clk 01:26:57]} {[%emt
00:03:30]} c6 {[%clk 01:29:08]} {[%emt 00:01:38]} 7. Nc3 {[%clk 01:25:16]}
{[%emt 00:02:11]} Nxc3 {[%clk 01:27:42]} {[%emt 00:01:55]} 8. bxc3 {[%clk
01:25:42]} {[%emt 00:00:06]} Nd7 {[%clk 01:24:51]} {[%emt 00:03:20]} 9. cxd5
{[%clk 01:23:34]} {[%emt 00:02:38]} cxd5 {[%clk 01:25:01]} {[%emt 00:00:20]} 10.
Bb5 {[%clk 01:20:20]} {[%emt 00:03:44]} a6 {[%clk 01:22:32]} {[%emt 00:03:00]}
11. Bd3 {[%clk 01:14:33]} {[%emt 00:06:16]} Bd6 {[%clk 01:20:24]} {[%emt
00:02:38]} 12. O-O {[%clk 01:14:10]} {[%emt 00:00:53]} O-O {[%clk 01:17:40]}
{[%emt 00:03:14]} 13. Re1 {[%clk 01:04:54]} {[%emt 00:09:45]} Nf6 {[%clk
01:14:37]} {[%emt 00:03:34]} 14. Bg5 {[%clk 01:03:29]} {[%emt 00:01:55]} Bg4
{[%clk 01:10:46]} {[%emt 00:04:21]} 15. Re3 {[%clk 01:00:06]} {[%emt 00:03:52]}
Be7 {[%clk 01:03:48]} {[%emt 00:07:29]} 16. Qb3 {[%clk 00:56:55]} {[%emt
00:03:37]} b5 {[%clk 01:00:45]} {[%emt 00:03:37]} 17. Ne5 {[%clk 00:56:58]}
{[%emt 00:00:27]} Be6 {[%clk 00:58:02]} {[%emt 00:03:12]} 18. Nc6 {[%clk
00:52:48]} {[%emt 00:04:41]} Qd7 {[%clk 00:55:52]} {[%emt 00:02:39]} 19. Nxe7+
{[%clk 00:49:11]} {[%emt 00:04:08]} Qxe7 {[%clk 00:56:12]} {[%emt 00:00:10]} 20.
f4 {[%clk 00:46:12]} {[%emt 00:03:30]} Qd8 {[%clk 00:50:04]} {[%emt 00:06:36]}
21. f5 {[%clk 00:45:56]} {[%emt 00:00:47]} Bc8 {[%clk 00:45:59]} {[%emt
00:04:35]} 22. Bxf6 {[%clk 00:43:05]} {[%emt 00:03:21]} gxf6 {[%clk 00:45:38]}
{[%emt 00:00:51]} 23. Rae1 {[%clk 00:42:12]} {[%emt 00:01:23]} Bb7 {[%clk
00:45:56]} {[%emt 00:23:06]} 24. Qd1 {[%clk 00:41:02]} {[%emt 00:01:41]} Kh8
{[%clk 00:43:46]} {[%emt 00:02:39]} 25. Qh5 {[%clk 00:40:29]} {[%emt 00:01:04]}
Rg8 {[%clk 00:42:06]} {[%emt 00:02:09]} 26. Qxf7 {[%clk 00:38:02]} {[%emt
00:02:58]} Bc6 {[%clk 00:40:37]} {[%emt 00:01:58]} 27. Re7 {[%clk 00:38:18]}
{[%emt 00:00:15]} 1-0

[Event "NJSK 2022 Meisjes A&B"]
[Site "Almelo, Netherlands"]
[Date "2022.05.01"]
[Round "1.3"]
[White "Bogouslavskii, Veronique"]
[Black "Cordes, Jule"]
[Result "0-1"]
[TimeControl "90min/40moves + 30min + 30sec/move"]
[WhiteElo "1618"]
[BlackElo "1802"]

1. d4 {[%clk 01:30:57]} {[%emt 00:00:02]} d5 {[%clk 01:30:53]} {[%emt
00:00:07]} 2. c4 {[%clk 01:31:15]} {[%emt 00:00:12]} c6 {[%clk 01:31:13]}
{[%emt 00:00:10]} 3. Nc3 {[%clk 01:31:24]} {[%emt 00:00:21]} Nf6 {[%clk
01:31:28]} {[%emt 00:00:15]} 4. e3 {[%clk 01:31:36]} {[%emt 00:00:19]} e6
{[%clk 01:31:37]} {[%emt 00:00:20]} 5. Nf3 {[%clk 01:30:42]} {[%emt 00:01:25]}
Nbd7 {[%clk 01:30:42]} {[%emt 00:01:25]} 6. Qc2 {[%clk 01:28:01]} {[%emt
00:03:11]} Be7 {[%clk 01:30:01]} {[%emt 00:01:11]} 7. b3 {[%clk 01:25:41]}
{[%emt 00:02:49]} b6 {[%clk 01:27:19]} {[%emt 00:03:13]} 8. Bd3 {[%clk
01:24:53]} {[%emt 00:01:18]} Bb7 {[%clk 01:26:07]} {[%emt 00:01:42]} 9. O-O
{[%clk 01:24:46]} {[%emt 00:00:36]} c5 {[%clk 01:24:05]} {[%emt 00:02:34]} 10.
cxd5 {[%clk 01:20:07]} {[%emt 00:05:08]} Nxd5 {[%clk 01:21:50]} {[%emt
00:02:45]} 11. Nxd5 {[%clk 01:18:10]} {[%emt 00:02:27]} Bxd5 {[%clk 01:20:49]}
{[%emt 00:01:31]} 12. e4 {[%clk 01:15:26]} {[%emt 00:03:14]} Bb7 {[%clk
01:18:55]} {[%emt 00:02:24]} 13. Bb2 {[%clk 01:14:20]} {[%emt 00:01:35]} cxd4
{[%clk 01:07:48]} {[%emt 00:11:38]} 14. Bxd4 {[%clk 01:07:49]} {[%emt
00:07:00]} O-O {[%clk 01:01:38]} {[%emt 00:06:41]} 15. Rad1 {[%clk 00:51:05]}
{[%emt 00:17:13]} Rc8 {[%clk 00:57:06]} {[%emt 00:05:02]} 16. Qe2 {[%clk
00:46:17]} {[%emt 00:05:18]} Qc7 {[%clk 00:47:58]} {[%emt 00:09:39]} 17. Bb5
{[%clk 00:40:57]} {[%emt 00:05:50]} Rfd8 {[%clk 00:42:01]} {[%emt 00:06:27]} 18.
Bb2 {[%clk 00:31:53]} {[%emt 00:27:25]} Nc5 {[%clk 00:26:32]} {[%emt 00:15:59]}
19. Rc1 {[%clk 00:18:40]} {[%emt 00:13:43]} Qf4 {[%clk 00:19:35]} {[%emt
00:07:28]} 20. e5 {[%clk 00:02:44]} {[%emt 00:16:26]} a6 {[%clk 00:14:58]}
{[%emt 00:05:08]} 21. Rc4 {[%clk 00:02:48]} {[%emt 00:00:25]} Qh6 {[%clk
00:10:12]} {[%emt 00:05:15]} 22. Bc1 {[%clk 00:02:25]} {[%emt 00:00:53]} Qg6
{[%clk 00:10:10]} {[%emt 00:00:33]} 23. Nh4 {[%clk 00:01:43]} {[%emt 00:01:12]}
Bxh4 {[%clk 00:09:37]} {[%emt 00:01:03]} 24. Rg4 {[%clk 00:02:00]} {[%emt
00:00:12]} Qf5 {[%clk 00:07:23]} {[%emt 00:02:44]} 25. Rf4 {[%clk 00:02:02]}
{[%emt 00:00:28]} Qg6 {[%clk 00:05:30]} {[%emt 00:02:23]} 26. Rg4 {[%clk
00:02:17]} {[%emt 00:00:15]} Bxf2+ {[%clk 00:03:19]} {[%emt 00:02:41]} 27. Rxf2
{[%clk 00:01:45]} {[%emt 00:01:03]} Qb1 {[%clk 00:03:07]} {[%emt 00:00:42]} 28.
Rf1 {[%clk 00:01:01]} {[%emt 00:01:13]} axb5 {[%clk 00:01:40]} {[%emt
00:01:58]} 29. Bh6 {[%clk 00:01:22]} {[%emt 00:00:09]} Qd3 {[%clk 00:00:51]}
{[%emt 00:01:19]} 30. Qxd3 {[%clk 00:01:06]} {[%emt 00:00:46]} Rxd3 {[%clk
00:00:47]} {[%emt 00:00:33]} 31. Rxg7+ {[%clk 00:01:09]} {[%emt 00:00:27]} Kh8
{[%clk 00:00:43]} {[%emt 00:00:34]} 32. Rfxf7 {[%clk 00:01:17]} {[%emt
00:00:22]} Be4 {[%clk 00:01:09]} {[%emt 00:00:05]} 33. Rc7 {[%clk 00:00:42]}
{[%emt 00:01:04]} Rcd8 {[%clk 00:00:48]} {[%emt 00:00:51]} 34. h3 {[%clk
00:00:43]} {[%emt 00:00:29]} Bg6 {[%clk 00:00:43]} {[%emt 00:00:35]} 35. Rge7
{[%clk 00:01:02]} {[%emt 00:00:11]} Bf5 {[%clk 00:00:55]} {[%emt 00:00:19]} 36.
g4 {[%clk 00:01:19]} {[%emt 00:00:13]} Bg6 {[%clk 00:00:44]} {[%emt 00:00:41]}
37. Bg5 {[%clk 00:01:23]} {[%emt 00:00:26]} Rd1+ {[%clk 00:00:51]} {[%emt
00:00:22]} 38. Kh2 {[%clk 00:01:45]} {[%emt 00:00:09]} R1d7 {[%clk 00:00:44]}
{[%emt 00:00:37]} 39. Bf6+ {[%clk 00:01:47]} {[%emt 00:00:27]} Kg8 {[%clk
00:01:10]} {[%emt 00:00:04]} 40. Rexd7 {[%clk 00:02:10]} {[%emt 00:00:08]} Rxd7
{[%clk 00:01:30]} {[%emt 00:00:10]} 41. Rc8+ {[%clk 00:02:07]} {[%emt
00:00:32]} Kf7 {[%clk 00:01:37]} {[%emt 00:00:22]} 42. Bg5 {[%clk 00:01:02]}
{[%emt 00:01:36]} Nd3 {[%clk 00:27:01]} {[%emt 00:05:07]} 43. h4 {[%clk
00:30:52]} {[%emt 00:00:39]} Nxe5 {[%clk 00:26:41]} {[%emt 00:00:50]} 0-1

[Event "NJSK 2022 Meisjes A&B"]
[Site "Almelo, Netherlands"]
[Date "2022.05.01"]
[Round "1.4"]
[White "Den Heijer, Rolinde"]
[Black "Mensing, Luana"]
[Result "1-0"]
[TimeControl "90min/40moves + 30min + 30sec/move"]
[WhiteElo "1754"]
[BlackElo "1604"]

1. e4 {[%clk 01:30:58]} {[%emt 00:00:01]} c5 {[%clk 01:30:54]} {[%emt
00:00:07]} 2. Nf3 {[%clk 01:31:24]} {[%emt 00:00:04]} d6 {[%clk 01:31:18]}
{[%emt 00:00:06]} 3. d4 {[%clk 01:31:50]} {[%emt 00:00:04]} cxd4 {[%clk
01:31:42]} {[%emt 00:00:06]} 4. Nxd4 {[%clk 01:32:15]} {[%emt 00:00:04]} Nf6
{[%clk 01:32:06]} {[%emt 00:00:06]} 5. Nc3 {[%clk 01:32:39]} {[%emt 00:00:06]}
a6 {[%clk 01:32:30]} {[%emt 00:00:06]} 6. Bc4 {[%clk 01:32:49]} {[%emt
00:00:20]} e6 {[%clk 01:32:20]} {[%emt 00:00:40]} 7. Bb3 {[%clk 01:32:38]}
{[%emt 00:00:41]} Be7 {[%clk 01:32:03]} {[%emt 00:00:48]} 8. O-O {[%clk
01:32:11]} {[%emt 00:00:56]} O-O {[%clk 01:31:44]} {[%emt 00:00:49]} 9. Be3
{[%clk 01:31:24]} {[%emt 00:01:16]} Nbd7 {[%clk 01:30:24]} {[%emt 00:01:51]} 10.
Bxe6 {[%clk 01:27:50]} {[%emt 00:04:03]} Nc5 {[%clk 01:26:37]} {[%emt
00:04:18]} 11. Bxc8 {[%clk 01:25:16]} {[%emt 00:03:04]} Rxc8 {[%clk 01:26:56]}
{[%emt 00:00:10]} 12. f3 {[%clk 01:24:04]} {[%emt 00:01:41]} g6 {[%clk
01:23:30]} {[%emt 00:03:56]} 13. Kh1 {[%clk 01:17:24]} {[%emt 00:07:10]} Re8
{[%clk 01:12:47]} {[%emt 00:11:14]} 14. Bh6 {[%clk 01:10:07]} {[%emt 00:07:46]}
Bf8 {[%clk 01:10:17]} {[%emt 00:03:01]} 15. Bxf8 {[%clk 01:07:11]} {[%emt
00:03:24]} Kxf8 {[%clk 01:10:32]} {[%emt 00:00:15]} 16. Nb3 {[%clk 01:05:16]}
{[%emt 00:02:25]} Nxb3 {[%clk 01:08:49]} {[%emt 00:02:14]} 17. axb3 {[%clk
01:05:19]} {[%emt 00:00:27]} Kg8 {[%clk 00:54:05]} {[%emt 00:15:14]} 18. Rf2
{[%clk 00:55:15]} {[%emt 00:10:34]} Nh5 {[%clk 00:45:14]} {[%emt 00:09:21]} 19.
Rd2 {[%clk 00:45:37]} {[%emt 00:10:07]} Rc6 {[%clk 00:38:27]} {[%emt 00:07:18]}
20. Ra4 {[%clk 00:45:19]} {[%emt 00:22:57]} Re5 {[%clk 00:27:02]} {[%emt
00:11:54]} 21. Rad4 {[%clk 00:39:09]} {[%emt 00:06:40]} Qb6 {[%clk 00:26:54]}
{[%emt 00:00:38]} 22. Nd5 {[%clk 00:35:58]} {[%emt 00:03:41]} Qa7 {[%clk
00:26:14]} {[%emt 00:01:10]} 23. Ne3 {[%clk 00:34:20]} {[%emt 00:02:07]} b5
{[%clk 00:18:42]} {[%emt 00:08:02]} 24. Ng4 {[%clk 00:31:06]} {[%emt 00:03:44]}
Rg5 {[%clk 00:14:12]} {[%emt 00:05:00]} 25. Rxd6 {[%clk 00:24:12]} {[%emt
00:07:24]} Rcc5 {[%clk 00:12:12]} {[%emt 00:02:30]} 26. h4 {[%clk 00:14:53]}
{[%emt 00:09:48]} Rxg4 {[%clk 00:06:15]} {[%emt 00:06:28]} 27. fxg4 {[%clk
00:14:41]} {[%emt 00:00:41]} Ng3+ {[%clk 00:06:38]} {[%emt 00:00:08]} 28. Kh2
{[%clk 00:14:27]} {[%emt 00:00:44]} Nxe4 {[%clk 00:06:48]} {[%emt 00:00:20]} 29.
Rd8+ {[%clk 00:14:22]} {[%emt 00:00:35]} Kg7 {[%clk 00:07:15]} {[%emt
00:00:04]} 30. R2d7 {[%clk 00:14:08]} {[%emt 00:00:43]} Rc7 {[%clk 00:06:19]}
{[%emt 00:01:26]} 31. Qd4+ {[%clk 00:12:05]} {[%emt 00:02:33]} Qxd4 {[%clk
00:06:38]} {[%emt 00:00:11]} 32. Rxd4 {[%clk 00:12:30]} {[%emt 00:00:05]} Nc5
{[%clk 00:06:54]} {[%emt 00:00:14]} 33. Rd2 {[%clk 00:12:11]} {[%emt 00:00:49]}
Ne6 {[%clk 00:06:14]} {[%emt 00:01:10]} 34. R8d7 {[%clk 00:12:04]} {[%emt
00:00:37]} Rc8 {[%clk 00:06:08]} {[%emt 00:00:37]} 35. Rf2 {[%clk 00:11:39]}
{[%emt 00:00:55]} Rf8 {[%clk 00:06:01]} {[%emt 00:00:37]} 36. Ra7 {[%clk
00:11:30]} {[%emt 00:00:38]} Nc5 {[%clk 00:05:16]} {[%emt 00:01:15]} 37. b4
{[%clk 00:11:09]} {[%emt 00:00:51]} Ne4 {[%clk 00:05:21]} {[%emt 00:00:26]} 38.
Re2 {[%clk 00:10:49]} {[%emt 00:00:49]} Nf6 {[%clk 00:05:37]} {[%emt 00:00:15]}
39. g5 {[%clk 00:10:41]} {[%emt 00:00:38]} Nd5 {[%clk 00:05:20]} {[%emt
00:00:47]} 40. c3 {[%clk 00:10:23]} {[%emt 00:00:48]} Nf4 {[%clk 00:05:02]}
{[%emt 00:00:48]} 41. Rf2 {[%clk 00:10:26]} {[%emt 00:00:25]} Nd3 {[%clk
00:05:18]} {[%emt 00:00:16]} 42. Rd2 {[%clk 00:10:33]} {[%emt 00:00:21]} Ne5
{[%clk 00:05:33]} {[%emt 00:00:16]} 43. Rxa6 {[%clk 00:10:26]} {[%emt
00:00:37]} Nc4 {[%clk 00:04:55]} {[%emt 00:01:08]} 44. Re2 {[%clk 00:10:19]}
{[%emt 00:00:36]} Rd8 {[%clk 00:05:03]} {[%emt 00:00:23]} 45. Ra7 {[%clk
00:10:13]} {[%emt 00:00:36]} Rd5 {[%clk 00:05:10]} {[%emt 00:00:22]} 46. Re8
{[%clk 00:09:17]} {[%emt 00:01:25]} h6 {[%clk 00:03:52]} {[%emt 00:01:49]} 47.
gxh6+ {[%clk 00:07:59]} {[%emt 00:01:47]} Kxh6 {[%clk 00:04:09]} {[%emt
00:00:12]} 48. Rxf7 {[%clk 00:07:39]} {[%emt 00:00:50]} g5 {[%clk 00:03:18]}
{[%emt 00:01:22]} 49. hxg5+ {[%clk 00:07:16]} {[%emt 00:00:53]} Kxg5 {[%clk
00:03:39]} {[%emt 00:00:09]} 50. Rg8+ {[%clk 00:07:19]} {[%emt 00:00:27]} Kh6
{[%clk 00:04:04]} {[%emt 00:00:05]} 51. Rf3 {[%clk 00:07:21]} {[%emt 00:00:28]}
Kh7 {[%clk 00:04:17]} {[%emt 00:00:18]} 52. Rg4 {[%clk 00:07:09]} {[%emt
00:00:40]} Rh5+ {[%clk 00:04:04]} {[%emt 00:00:44]} 53. Rh3 {[%clk 00:07:30]}
{[%emt 00:00:09]} Rxh3+ {[%clk 00:04:29]} {[%emt 00:00:06]} 54. Kxh3 {[%clk
00:07:49]} {[%emt 00:00:11]} Nxb2 {[%clk 00:04:34]} {[%emt 00:00:26]} 55. Rg5
{[%clk 00:08:01]} {[%emt 00:00:16]} Nd1 {[%clk 00:04:42]} {[%emt 00:00:23]} 56.
Rxb5 {[%clk 00:07:59]} {[%emt 00:00:33]} Nxc3 {[%clk 00:05:03]} {[%emt
00:00:09]} 57. Rc5 {[%clk 00:07:59]} {[%emt 00:00:28]} 1-0

[Event "NJSK 2022 Meisjes A&B"]
[Site "Almelo, Netherlands"]
[Date "2022.05.01"]
[Round "1.5"]
[White "Jonkman, Amelia"]
[Black "Van Essen, Marieke"]
[Result "0-1"]
[TimeControl "90min/40moves + 30min + 30sec/move"]
[WhiteElo "1552"]
[BlackElo "1728"]

1. d4 {[%clk 01:30:59]} Nf6 {[%clk 01:30:54]} {[%emt 00:00:07]} 2. c4 {[%clk
01:31:21]} {[%emt 00:00:08]} c5 {[%clk 01:31:19]} {[%emt 00:00:05]} 3. Nf3
{[%clk 01:31:45]} {[%emt 00:00:06]} g6 {[%clk 01:31:35]} {[%emt 00:00:14]} 4.
Nc3 {[%clk 01:32:04]} {[%emt 00:00:10]} cxd4 {[%clk 01:31:37]} {[%emt
00:00:27]} 5. Nxd4 {[%clk 01:32:22]} {[%emt 00:00:12]} Bg7 {[%clk 01:31:56]}
{[%emt 00:00:11]} 6. Bf4 {[%clk 01:32:34]} {[%emt 00:00:19]} d6 {[%clk
01:31:46]} {[%emt 00:00:41]} 7. Bg3 {[%clk 01:32:37]} {[%emt 00:00:26]} O-O
{[%clk 01:31:15]} {[%emt 00:01:01]} 8. e3 {[%clk 01:29:20]} {[%emt 00:03:48]}
Nc6 {[%clk 01:28:51]} {[%emt 00:02:54]} 9. Bd3 {[%clk 01:26:36]} {[%emt
00:03:14]} Nh5 {[%clk 01:26:59]} {[%emt 00:02:21]} 10. Bc2 {[%clk 01:24:45]}
{[%emt 00:02:21]} Nxd4 {[%clk 01:23:58]} {[%emt 00:03:32]} 11. exd4 {[%clk
01:24:52]} {[%emt 00:00:22]} Nxg3 {[%clk 01:22:38]} {[%emt 00:01:50]} 12. hxg3
{[%clk 01:25:08]} {[%emt 00:00:14]} Qb6 {[%clk 01:21:51]} {[%emt 00:01:18]} 13.
Rb1 {[%clk 01:14:09]} {[%emt 00:11:29]} Qxd4 {[%clk 01:19:17]} {[%emt
00:03:03]} 14. Qxd4 {[%clk 01:11:17]} {[%emt 00:03:22]} Bxd4 {[%clk 01:19:39]}
{[%emt 00:00:08]} 15. Nb5 {[%clk 01:06:55]} {[%emt 00:04:52]} Bg7 {[%clk
01:17:55]} {[%emt 00:02:14]} 16. O-O {[%clk 01:06:32]} {[%emt 00:00:54]} Bd7
{[%clk 01:16:09]} {[%emt 00:02:16]} 17. Rfe1 {[%clk 00:52:38]} {[%emt
00:14:23]} Bxb5 {[%clk 01:13:47]} {[%emt 00:02:52]} 18. cxb5 {[%clk 00:52:51]}
{[%emt 00:00:17]} e6 {[%clk 01:13:45]} {[%emt 00:00:32]} 19. b3 {[%clk
00:51:20]} {[%emt 00:02:01]} Rac8 {[%clk 01:10:04]} {[%emt 00:04:11]} 20. Rec1
{[%clk 00:44:26]} {[%emt 00:07:24]} b6 {[%clk 01:04:25]} {[%emt 00:06:10]} 21.
Kf1 {[%clk 00:42:10]} {[%emt 00:02:46]} d5 {[%clk 01:00:32]} {[%emt 00:04:23]}
22. f4 {[%clk 00:40:54]} {[%emt 00:01:46]} Rc3 {[%clk 00:54:18]} {[%emt
00:06:44]} 23. g4 {[%clk 00:39:43]} {[%emt 00:01:41]} Rfc8 {[%clk 00:48:58]}
{[%emt 00:05:49]} 24. Rd1 {[%clk 00:24:44]} {[%emt 00:33:24]} Rxc2 {[%clk
00:48:13]} {[%emt 00:01:15]} 25. a3 {[%clk 00:24:54]} {[%emt 00:00:20]} Ra2
{[%clk 00:42:41]} {[%emt 00:06:02]} 26. a4 {[%clk 00:24:35]} {[%emt 00:00:50]}
Rcc2 {[%clk 00:42:32]} {[%emt 00:00:39]} 27. g3 {[%clk 00:23:22]} {[%emt
00:01:42]} Rf2+ {[%clk 00:42:33]} {[%emt 00:00:28]} 28. Kg1 {[%clk 00:23:30]}
{[%emt 00:00:22]} Rg2+ {[%clk 00:41:24]} {[%emt 00:01:40]} 29. Kf1 {[%clk
00:22:45]} {[%emt 00:01:15]} Raf2+ {[%clk 00:41:33]} {[%emt 00:00:21]} 30. Ke1
{[%clk 00:22:55]} {[%emt 00:00:21]} Bc3+ {[%clk 00:41:51]} {[%emt 00:00:11]}
0-1